fUSD/lending_fUSD_20250510
["ID","MTS","AMOUNT","RATE_DAILY","PERIOD"]
[360538592,1746863445490,-315.26171589,0.00019999,2]
[360538593,1746863445499,-131.04911111,0.00019999,2]
[360538594,1746863445518,-455.07088889,0.00019999,2]
[360538595,1746863445528,-586.12,0.00019999,2]
[360538596,1746863445538,-586.12,0.00019999,2]
[360538597,1746863445548,-411.99089204,0.00019999,2]
[360538598,1746863445574,-174.13192269,0.00019999,2]
[360538599,1746863445584,-536.68705806,0.00019999,2]
[360538600,1746863445641,-32.67294194,0.00019999,2]
[360538601,1746863445651,-569.36,0.00019999,2]
[360538602,1746863445661,-569.36,0.00019999,2]
[360538603,1746863445671,-569.36,0.00019999,2]
[360538604,1746863445680,-142.13002989,0.00019999,2]
[360538605,1746863445692,-427.22997011,0.00019999,2]
[360538606,1746863445703,-569.36,0.00019999,2]
[360538607,1746863445713,-569.36,0.00019999,2]
[360538608,1746863445724,-569.36,0.00019999,2]
[360538609,1746863445734,-569.36,0.00019999,2]
[360538610,1746863445745,-569.36,0.00019999,2]
[360538611,1746863445755,-569.36,0.00019999,2]
[360538612,1746863445766,-569.36,0.00019999,2]
[360538613,1746863445777,-569.36,0.00019999,2]
[360538614,1746863445787,-569.36,0.00019999,2]
[360538615,1746863445797,-569.36,0.00019999,2]
[360538616,1746863445807,-569.36,0.00019999,2]
[360538617,1746863445817,-569.36,0.00019999,2]
[360538618,1746863445830,-569.36,0.00019999,2]
[360538619,1746863445840,-569.36,0.00019999,2]
[360538620,1746863445850,-569.36,0.00019999,2]
[360538621,1746863445860,-569.36,0.00019999,2]
[360538622,1746863445870,-569.36,0.00019999,2]
[360538623,1746863445879,-569.36,0.00019999,2]
[360538624,1746863445890,-569.4256769,0.00019999,2]
[360538625,1746863445899,-1572.9,0.00019999,2]
[360538626,1746863445908,-1572.9,0.00019999,2]
[360538627,1746863445919,-1572.9,0.00019999,2]
[360538628,1746863445928,-1369.16666707,0.00019999,2]
[360538629,1746863445946,-203.73333293,0.00019999,2]
[360538630,1746863445955,-1572.9,0.00019999,2]
[360538631,1746863445965,-1572.9,0.00019999,2]
[360538632,1746863445975,-1572.9,0.00019999,2]
[360538633,1746863445984,-1572.9,0.00019999,2]
[360538634,1746863445994,-1572.9,0.00019999,2]
[360538635,1746863446004,-1572.9,0.00019999,2]
[360538636,1746863446015,-1572.9,0.00019999,2]
[360538637,1746863446024,-1572.9,0.00019999,2]
[360538638,1746863446034,-1572.9,0.00019999,2]
[360538639,1746863446044,-1572.9,0.00019999,2]
[360538640,1746863446053,-1572.9,0.00019999,2]
[360538641,1746863446064,-1572.9,0.00019999,2]
[360538642,1746863446074,-1572.9,0.00019999,2]
[360538643,1746863446083,-1572.9,0.00019999,2]
[360538644,1746863446094,-1572.9,0.00019999,2]
[360538645,1746863446103,-1572.9,0.00019999,2]
[360538646,1746863446113,-1572.9,0.00019999,2]
[360538647,1746863446123,-1572.9,0.00019999,2]
[360538648,1746863446132,-1572.9,0.00019999,2]
[360538649,1746863446142,-1572.97727033,0.00019999,2]
[360538650,1746863446152,-460.82,0.00019999,2]
[360538651,1746863446161,-460.82,0.00019999,2]
[360538652,1746863446171,-460.82,0.00019999,2]
[360538653,1746863446180,-460.82,0.00019999,2]
[360538655,1746863446190,-460.82,0.00019999,2]
[360538656,1746863446199,-460.82,0.00019999,2]
[360538657,1746863446208,-400.0,0.00019999,2]
[360538658,1746863446218,-460.82,0.00019999,2]
[360538659,1746863446227,-400.0,0.00019999,2]
[360538660,1746863446237,-460.82,0.00019999,2]
[360538661,1746863446246,-400.0,0.00019999,2]
[360538662,1746863446256,-400.0,0.00019999,2]
[360538663,1746863446266,-460.82,0.00019999,2]
[360538664,1746863446276,-400.0,0.00019999,2]
[360538665,1746863446286,-460.82,0.00019999,2]
[360538666,1746863446295,-278.61658054,0.00019999,2]
[360538667,1746863446307,-121.38341946,0.00019999,2]
[360538668,1746863446317,-444.87454038,0.00019999,2]
[360538669,1746863446334,-460.82,0.00019999,2]
[360538670,1746863446350,-460.82,0.00019999,2]
[360538671,1746863446360,-460.82,0.00019999,2]
[360538672,1746863446370,-460.82,0.00019999,2]
[360538673,1746863446379,-460.82,0.00019999,2]
[360538674,1746863446390,-460.82,0.00019999,2]
[360538675,1746863446400,-460.82,0.00019999,2]
[360538676,1746863446410,-10.11734269,0.00019999,2]
[360538677,1746863446422,-450.70265731,0.00019999,2]
[360538678,1746863446433,-460.82,0.00019999,2]
[360538679,1746863446443,-13.34839453,0.00019999,2]
[360538680,1746863446455,-447.47160547,0.00019999,2]
[360538681,1746863446464,-460.82,0.00019999,2]
[360538682,1746863446474,-460.82,0.00019999,2]
[360538683,1746863446483,-460.97594799,0.00019999,2]
[360538684,1746863446493,-400.0,0.00019999,2]
[360538685,1746863446502,-1159.3,0.00019999,2]
[360538686,1746863446512,-1159.3,0.00019999,2]
[360538687,1746863446522,-1159.3,0.00019999,2]
[360538688,1746863446532,-1159.3,0.00019999,2]
[360538689,1746863446541,-1159.3,0.00019999,2]
[360538690,1746863446551,-1159.3,0.00019999,2]
[360538691,1746863446561,-1159.3,0.00019999,2]
[360538692,1746863446571,-1159.3,0.00019999,2]
[360538693,1746863446581,-1159.3,0.00019999,2]
[360538694,1746863446590,-1159.3,0.00019999,2]
[360538695,1746863446600,-1159.3,0.00019999,2]
[360538696,1746863446610,-1159.3,0.00019999,2]
[360538697,1746863446620,-1159.3,0.00019999,2]
[360538698,1746863446629,-1159.3,0.00019999,2]
[360538699,1746863446639,-1159.3,0.00019999,2]
[360538700,1746863446649,-1159.3,0.00019999,2]
[360538701,1746863446659,-1159.3,0.00019999,2]
[360538702,1746863446669,-1159.3,0.00019999,2]
[360538703,1746863446679,-1159.3,0.00019999,2]
[360538704,1746863446689,-1159.3,0.00019999,2]
[360538705,1746863446699,-1159.3,0.00019999,2]
[360538706,1746863446710,-1159.3,0.00019999,2]
[360538707,1746863446720,-1159.3,0.00019999,2]
[360538708,1746863446730,-1159.3199,0.00019999,2]
[360538709,1746863446740,-1771.56,0.00019999,2]
[360538710,1746863446751,-1771.56,0.00019999,2]
[360538711,1746863446761,-1771.56,0.00019999,2]
[360538712,1746863446770,-1771.56,0.00019999,2]
[360538713,1746863446780,-1771.56,0.00019999,2]
[360538714,1746863446790,-1771.56,0.00019999,2]
[360538715,1746863446801,-1771.56,0.00019999,2]
[360538716,1746863446811,-1771.56,0.00019999,2]
[360538717,1746863446822,-400.0,0.00019999,2]
[360538718,1746863446836,-1771.56,0.00019999,2]
[360538719,1746863446846,-1771.56,0.00019999,2]
[360538720,1746863446857,-1771.56,0.00019999,2]
[360538721,1746863446867,-1771.56,0.00019999,2]
[360538722,1746863446877,-1771.56,0.00019999,2]
[360538723,1746863446887,-1771.56,0.00019999,2]
[360538724,1746863446897,-1771.56,0.00019999,2]
[360538725,1746863446908,-1771.56,0.00019999,2]
[360538726,1746863446920,-1771.56,0.00019999,2]
[360538727,1746863446931,-1771.56,0.00019999,2]
[360538728,1746863446941,-1771.56,0.00019999,2]
[360538729,1746863446951,-1771.56,0.00019999,2]
[360538730,1746863446961,-1771.56,0.00019999,2]
[360538731,1746863446970,-1771.56,0.00019999,2]
[360538732,1746863446980,-1771.56,0.00019999,2]
[360538733,1746863446991,-1771.5649827,0.00019999,2]
[360538734,1746863447000,-400.0,0.00019999,2]
[360538735,1746863447010,-400.0,0.00019999,2]
[360538736,1746863447020,-400.0,0.00019999,2]
[360538737,1746863447030,-392.16,0.00019999,2]
[360538738,1746863447046,-400.0,0.00019999,2]
[360538739,1746863447056,-1431.46,0.00019999,2]
[360538740,1746863447066,-1431.46,0.00019999,2]
[360538741,1746863447076,-1431.46,0.00019999,2]
[360538742,1746863447086,-1431.46,0.00019999,2]
[360538743,1746863447097,-1431.46,0.00019999,2]
[360538744,1746863447107,-1431.46,0.00019999,2]
[360538745,1746863447117,-1431.46,0.00019999,2]
[360538746,1746863447127,-1431.46,0.00019999,2]
[360538747,1746863447137,-1431.46,0.00019999,2]
[360538748,1746863447146,-1431.46,0.00019999,2]
[360538749,1746863447157,-1431.46,0.00019999,2]
[360538750,1746863447167,-1431.46,0.00019999,2]
[360538751,1746863447395,-1431.46,0.00019999,2]
[360538752,1746863447407,-3218.35271423,0.0002,2]
[360538753,1746863447424,-267.91827482,0.0002,2]
[360538754,1746863447436,-123949.46543201,0.0002,2]
[360538755,1746863447452,-1729.24609705,0.0002,2]
[360538756,1746863447464,-302.0,0.0002,2]
[360538757,1746863447481,-2647.73328687,0.0002,2]
[360538758,1746863455126,1999.0,0.00030137,120]
[360538759,1746863639368,3291.0,0.0003,90]
[360538760,1746863670657,159.93,0.00019138,2]
[360538761,1746863713028,6121.6,0.00019112,2]
[360538762,1746863893636,393.2809,0.000298,44]
[360538763,1746863893759,393.2809,0.000248,34]
[360538764,1746863893814,393.2809,0.000273,39]
[360538765,1746864011923,333.187,0.00030137,120]
[360538783,1746864150681,150.0,0.00029097,120]
[360538784,1746864154362,1000.0,0.0003,30]
[360538785,1746864163583,1000.0,0.0003,30]
[360538786,1746864170138,230.26,0.00018911,2]
[360538787,1746864173017,1000.0,0.0003,30]
[360538788,1746864181545,1000.0,0.0003,30]
[360538789,1746864198937,393.2809,0.0002595,36]
[360538795,1746864288702,227.47,0.0001892,2]
[360538796,1746864294275,335.0,0.0003,30]
[360538801,1746864337718,387.0,0.0003,31]
[360538803,1746864362140,256.0,0.00018919,2]
[360538806,1746864362861,256.0,0.00026014,120]
[360538807,1746864363060,256.0,0.00028379,120]
[360538808,1746864364449,388.39990515,0.0003,32]
[360538809,1746864374531,1000.0,0.00018929,2]
[360538811,1746864388875,164.71,0.00019497,2]
[360538812,1746864390527,150.0,0.00028888,120]
[360538822,1746864556616,-150.48424008,0.00019644,2]
[360538823,1746864556641,-127.68655576,0.00019648,2]
[360538827,1746864571635,-122.31344424,0.00019648,2]
[360538828,1746864571661,-65.26411688,0.00019648,2]
[360538838,1746864631760,-134.73588312,0.00019648,2]
[360538839,1746864631772,-200.0,0.00019649,2]
[360538840,1746864631783,-250.0,0.0001965,2]
[360538841,1746864631793,-159.11108206,0.00019672,2]
[360538842,1746864631804,-159.11108202,0.00019729,2]
[360538843,1746864631814,-207.4,0.00019734,2]
[360538844,1746864631829,-300.0,0.00019744,2]
[360538845,1746864631840,-300.0,0.00019744,2]
[360538846,1746864631850,-539.90199584,0.00019744,2]
[360538847,1746864631863,-660.09800416,0.00019744,2]
[360538848,1746864631874,-52.70382305,0.00019744,2]
[360538849,1746864631895,-247.29617695,0.00019744,2]
[360538850,1746864631905,-416.57376802,0.00019745,2]
[360538851,1746864631919,-83.42623198,0.00019745,2]
[360538852,1746864631929,-500.0,0.00019745,2]
[360538853,1746864631940,-500.0,0.00019745,2]
[360538854,1746864631950,-534.57293784,0.00019745,2]
[360538855,1746864631960,-499.99999999,0.00019745,2]
[360538856,1746864631971,-400.0,0.00019745,2]
[360538857,1746864631981,-400.0,0.00019745,2]
[360538858,1746864631991,-165.16930641,0.00019745,2]
[360538859,1746864632004,-156.68263382,0.00019745,2]
[360538860,1746864632014,-656.09,0.00019745,2]
[360538861,1746864632024,-450.0,0.00019745,2]
[360538862,1746864632035,-450.0,0.00019745,2]
[360538863,1746864632044,-450.0,0.00019745,2]
[360538864,1746864632055,-250.692783,0.00019746,2]
[360538865,1746864632065,-1412.81719,0.00019746,2]
[360538866,1746864632077,-308.690541,0.00019746,2]
[360538867,1746864632087,-7401.21103907,0.00019746,2]
[360538868,1746864632104,-350.28816462,0.00019746,2]
[360538869,1746864632116,-23037.43791057,0.00019746,2]
[360538870,1746864632128,-2428.89999996,0.00019746,2]
[360538871,1746864632140,-1722.8,0.00019746,2]
[360538872,1746864632157,-9935.31840957,0.00019746,2]
[360538873,1746864632244,-189191.64447621,0.00019746,2]
[360538875,1746864632258,-450.0,0.00019772,2]
[360538876,1746864632269,-450.0,0.00019772,2]
[360538877,1746864632279,-450.0,0.00019772,2]
[360538878,1746864632291,-450.0,0.00019772,2]
[360538879,1746864632301,-499.807721,0.00019772,2]
[360538880,1746864632311,-450.0,0.00019772,2]
[360538881,1746864632322,-400.0,0.00019772,2]
[360538883,1746864632333,-450.0,0.00019772,2]
[360538885,1746864632344,-450.0,0.00019772,2]
[360538887,1746864632354,-408.26603042,0.00019772,2]
[360538888,1746864632364,-450.0,0.00019772,2]
[360538889,1746864632375,-465.81873196,0.00019772,2]
[360538890,1746864632385,-462.8744959,0.00019772,2]
[360538891,1746864632395,-400.0,0.00019772,2]
[360538892,1746864632406,-400.0,0.00019772,2]
[360538893,1746864632418,-500.0,0.00019773,2]
[360538894,1746864632427,-500.0,0.00019773,2]
[360538895,1746864632438,-500.0,0.00019773,2]
[360538896,1746864632448,-500.0,0.00019773,2]
[360538897,1746864632458,-159.11108202,0.00019786,2]
[360538898,1746864632468,-393.2809,0.000198,23]
[360538899,1746864632478,-500.0,0.0001984,2]
[360538901,1746864632488,-500.0,0.0001984,2]
[360538903,1746864632498,-159.11108202,0.00019843,2]
[360538905,1746864632510,-500.0,0.00019873,2]
[360538907,1746864632520,-500.0,0.00019873,2]
[360538909,1746864632530,-500.0,0.00019873,2]
[360538911,1746864632540,-55374.45558573,0.00019879,2]
[360538913,1746864632550,-151.12835486,0.00019892,2]
[360538915,1746864632560,-151.12835486,0.00019894,2]
[360538917,1746864632571,-746.939,0.00019895,2]
[360538919,1746864632581,-250.692783,0.00019896,2]
[360538921,1746864632591,-1412.81719,0.00019896,2]
[360538923,1746864632601,-308.690541,0.00019896,2]
[360538925,1746864632611,-151.12835486,0.00019896,2]
[360538927,1746864632622,-151.12835486,0.00019898,2]
[360538929,1746864632632,-177.15005512,0.00019899,2]
[360538931,1746864632642,-177.15005512,0.00019899,2]
[360538933,1746864632652,-177.15005512,0.00019899,2]
[360538935,1746864632662,-177.15005512,0.00019899,2]
[360538937,1746864632672,-177.15005512,0.00019899,2]
[360538939,1746864632682,-177.15005512,0.000199,2]
[360538941,1746864632692,-177.15005512,0.000199,2]
[360538943,1746864632702,-177.15005512,0.000199,2]
[360538945,1746864632711,-177.15005512,0.000199,2]
[360538947,1746864632721,-327.56564674,0.000199,2]
[360538949,1746864632732,-151.12835486,0.000199,2]
[360538951,1746864632742,-369.4904005,0.000199,2]
[360538953,1746864632753,-3980.34061547,0.000199,2]
[360538982,1746864633028,-2673.22702044,0.000199,2]
[360538984,1746864633038,-2261.89627659,0.000199,2]
[360538987,1746864633048,-159.11108202,0.000199,2]
[360538988,1746864633058,-519.3023449,0.000199,2]
[360538990,1746864633068,-177.15005512,0.000199,2]
[360538993,1746864633079,-4024.0,0.00019964,2]
[360538995,1746864633089,-153.0,0.00019964,2]
[360538997,1746864633098,-5937.0,0.00019964,2]
[360538999,1746864633108,-1140.0,0.00019964,2]
[360539000,1746864633118,-500.0,0.00019973,2]
[360539002,1746864633128,-500.0,0.00019973,2]
[360539004,1746864633138,-500.0,0.00019973,2]
[360539006,1746864633148,-500.0,0.00019973,2]
[360539008,1746864633158,-189.24547016,0.00019973,2]
[360539010,1746864633168,-500.0,0.00019973,2]
[360539012,1746864633177,-500.0,0.00019973,2]
[360539014,1746864633187,-500.000001,0.00019973,2]
[360539015,1746864633197,-500.0,0.00019973,2]
[360539016,1746864633207,-500.0,0.00019973,2]
[360539018,1746864633216,-500.96840743,0.00019973,2]
[360539020,1746864633226,-200.29130947,0.00019973,2]
[360539021,1746864633236,-500.0,0.00019973,2]
[360539022,1746864633246,-500.0,0.00019973,2]
[360539023,1746864633259,-500.0,0.00019973,2]
[360539024,1746864633270,-500.0,0.00019973,2]
[360539025,1746864633281,-500.0,0.00019973,2]
[360539026,1746864633291,-500.0,0.00019973,2]
[360539027,1746864633303,-500.0,0.00019973,2]
[360539028,1746864633313,-500.0,0.00019973,2]
[360539029,1746864633324,-330.9660614,0.00019992,2]
[360539030,1746864633336,-294.8058635,0.00019992,2]
[360539031,1746864633346,-10481.739228,0.00019992,2]
[360539032,1746864633356,-182.7209885,0.00019998,2]
[360539033,1746864633368,-400.0,0.00019998,2]
[360539034,1746864633378,-159.82260972,0.00019998,2]
[360539035,1746864633388,-172.75876518,0.00019998,2]
[360539036,1746864633398,-500.0,0.00019998,2]
[360539037,1746864633408,-408.73566953,0.00019998,2]
[360539038,1746864633418,-267.91827482,0.00019999,2]
[360539039,1746864633429,-16318.14875016,0.00019999,2]
[360539043,1746864637794,-6204.9454471,0.00019999,2]
[360539045,1746864637807,-2500.7405,0.00019999,2]
[360539048,1746864637841,-4104.72063404,0.00019999,2]
[360539050,1746864637853,-2659.72347611,0.00019999,2]
[360539051,1746864638007,-3616.016283,0.00019999,2]
[360539066,1746864640018,-3186.10999976,0.00019999,2]
[360539067,1746864640030,-1569.74500004,0.00019999,2]
[360539068,1746864640491,-53273.31344741,0.00019999,2]
[360539069,1746864640502,-500.0,0.00019999,2]
[360539070,1746864640514,-300.0,0.00019999,2]
[360539071,1746864640526,-338.0,0.00019999,2]
[360539072,1746864640537,-157.47548294,0.00019999,2]
[360539073,1746864640547,-400.0,0.00019999,2]
[360539074,1746864640556,-400.0,0.00019999,2]
[360539075,1746864640566,-400.0,0.00019999,2]
[360539076,1746864640575,-400.0,0.00019999,2]
[360539077,1746864640585,-400.0,0.00019999,2]
[360539078,1746864640595,-464.20875828,0.00019999,2]
[360539079,1746864640605,-378.27447103,0.00019999,2]
[360539080,1746864640615,-512.3703966,0.00019999,2]
[360539081,1746864640624,-476.94236599,0.00019999,2]
[360539082,1746864640634,-684.47,0.00019999,2]
[360539083,1746864640644,-684.47,0.00019999,2]
[360539084,1746864640654,-684.47,0.00019999,2]
[360539085,1746864640664,-684.47,0.00019999,2]
[360539086,1746864640673,-684.47,0.00019999,2]
[360539087,1746864640682,-684.47,0.00019999,2]
[360539088,1746864640692,-684.47,0.00019999,2]
[360539089,1746864640701,-684.47,0.00019999,2]
[360539090,1746864640711,-684.47,0.00019999,2]
[360539091,1746864640721,-684.47,0.00019999,2]
[360539092,1746864640731,-684.47,0.00019999,2]
[360539093,1746864640740,-684.47,0.00019999,2]
[360539094,1746864640749,-684.47,0.00019999,2]
[360539095,1746864640761,-684.47,0.00019999,2]
[360539096,1746864640771,-684.47,0.00019999,2]
[360539097,1746864640781,-684.47,0.00019999,2]
[360539098,1746864640790,-684.47,0.00019999,2]
[360539099,1746864640799,-684.47,0.00019999,2]
[360539100,1746864640809,-684.47,0.00019999,2]
[360539101,1746864640818,-684.47,0.00019999,2]
[360539102,1746864640828,-684.47,0.00019999,2]
[360539103,1746864640837,-684.47,0.00019999,2]
[360539104,1746864640847,-684.47,0.00019999,2]
[360539105,1746864640857,-684.53616592,0.00019999,2]
[360539106,1746864640869,-400.0,0.00019999,2]
[360539107,1746864640880,-233.54,0.00019999,2]
[360539108,1746864640890,-656.09,0.00019999,2]
[360539109,1746864640900,-656.09,0.00019999,2]
[360539110,1746864640910,-656.09,0.00019999,2]
[360539111,1746864640920,-656.09,0.00019999,2]
[360539112,1746864640930,-656.09,0.00019999,2]
[360539113,1746864640939,-656.09,0.00019999,2]
[360539114,1746864640949,-656.09,0.00019999,2]
[360539115,1746864640959,-656.09,0.00019999,2]
[360539116,1746864640968,-656.09,0.00019999,2]
[360539117,1746864640978,-656.09,0.00019999,2]
[360539118,1746864640987,-656.09,0.00019999,2]
[360539119,1746864640997,-656.09,0.00019999,2]
[360539120,1746864641012,-656.09,0.00019999,2]
[360539121,1746864641021,-656.09,0.00019999,2]
[360539122,1746864641031,-656.09,0.00019999,2]
[360539123,1746864641040,-656.09,0.00019999,2]
[360539124,1746864641050,-656.09,0.00019999,2]
[360539125,1746864641060,-656.09,0.00019999,2]
[360539126,1746864641073,-656.09,0.00019999,2]
[360539127,1746864641083,-656.09,0.00019999,2]
[360539128,1746864641093,-656.09,0.00019999,2]
[360539129,1746864641104,-656.09,0.00019999,2]
[360539130,1746864641114,-656.17563083,0.00019999,2]
[360539131,1746864641125,-36386.03892958,0.0002,2]
[360539132,1746864641135,-9251382.17353119,0.0002,2]
[360539145,1746864645085,-2133.95299216,0.0002,2]
[360539146,1746864645098,-712.10209028,0.0002,2]
[360539148,1746864645152,-1178.25700784,0.0002,2]
[360539150,1746864645346,-81998.01276193,0.0002,2]
[360539152,1746864645358,-5104.97238633,0.0002,2]
[360539157,1746864646138,-2656.82585989,0.0002,2]
[360539158,1746864646150,-1041.72015036,0.0002,2]
[360539159,1746864646347,-1167.84062999,0.0002,2]
[360539186,1746864690672,24551.21730857,0.000195,2]
[360539187,1746864690697,175448.78269143,0.000195,2]
[360539200,1746864747169,4753.88,0.00030137,120]
[360539203,1746864825480,250.0,0.00017,2]
[360539204,1746864826557,300.0,0.00019,2]
[360539218,1746864985920,552.17,0.0001711,2]
[360539219,1746864985953,552.17,0.00019374,2]
[360539221,1746865007725,5039.45,0.0003,30]
[360539232,1746865104531,1849.12,0.00030137,120]
[360539238,1746865170553,150.0,0.0002984,120]
[360539272,1746865351627,-200.0,0.00019634,2]
[360539273,1746865382876,275.02,0.00018987,2]
[360539274,1746865383687,275.02,0.00026107,120]
[360539275,1746865383894,275.02,0.0002848,120]
[360539276,1746865434823,230.26,0.00018987,2]
[360539278,1746865455097,1006.0,0.0003,30]
[360539282,1746865508083,1000.0,0.00018935,2]
[360539283,1746865510844,1274.87393168,0.000154,2]
[360539285,1746865528733,792.58875128,0.00011,2]
[360539288,1746865556446,503.03868951,6.94e-05,2]
[360539292,1746865597378,-165.57665504,0.00019503,2]
[360539294,1746865599468,150.0,0.000195,2]
[360539296,1746865604724,-0.88334496,0.00019503,2]
[360539298,1746865621728,151.48291031,0.0003,30]
[360539300,1746865633141,1581.70137364,0.00015,2]
[360539304,1746865682424,-170.52606383,0.00019531,2]
[360539306,1746865696614,-222.822099,0.00019531,2]
[360539307,1746865696850,321.74,0.0003,30]
[360539308,1746865699945,805.34125131,0.000135,2]
[360539309,1746865700045,297.5967152,0.000125,2]
[360539310,1746865707938,1870.31475967,0.0001,2]
[360539312,1746865716906,216.81378945,0.0001,2]
[360539313,1746865718698,201.73538701,0.000149,2]
[360539314,1746865718722,1200.81094767,0.000149,2]
[360539337,1746865817679,163.4923076,0.00017085,2]
[360539356,1746865831878,-1760.30960818,0.00019531,2]
[360539358,1746865831891,-250.0,0.00019582,2]
[360539360,1746865831900,-200.0,0.00019582,2]
[360539363,1746865831911,-200.0,0.00019619,2]
[360539365,1746865831920,-207.4,0.00019634,2]
[360539367,1746865831929,-1200.0,0.00019644,2]
[360539369,1746865831939,-300.0,0.00019644,2]
[360539371,1746865831949,-300.0,0.00019645,2]
[360539373,1746865831959,-1086.69129108,0.00019646,2]
[360539375,1746865831975,-736.159057,0.00019646,2]
[360539378,1746865831992,-4264.20280542,0.00019646,2]
[360539380,1746865832004,-2413.69999999,0.00019646,2]
[360539381,1746865832016,-8304.57854651,0.00019646,2]
[360539382,1746865832027,-1000.0,0.00019646,2]
[360539383,1746865832037,-1000.0,0.000197,2]
[360539384,1746865832047,-850.0,0.00019744,2]
[360539385,1746865832057,-450.0,0.00019745,2]
[360539386,1746865832067,-450.0,0.00019745,2]
[360539387,1746865832076,-400.0,0.00019745,2]
[360539388,1746865832086,-520.72050902,0.00019745,2]
[360539389,1746865832096,-422.59834766,0.00019745,2]
[360539390,1746865832106,-220.54212769,0.00019772,2]
[360539391,1746865832115,-432.4745872,0.00019773,2]
[360539392,1746865832126,-4409.7645,0.00019779,2]
[360539393,1746865832136,-196.64045,0.000198,23]
[360539394,1746865832146,-500.0,0.0001984,2]
[360539395,1746865832156,-500.0,0.0001984,2]
[360539396,1746865832167,-2551.88636208,0.0001989,2]
[360539397,1746865832177,-597.551,0.00019895,2]
[360539398,1746865832187,-368.14380634,0.00019899,2]
[360539399,1746865832198,-368.14380634,0.00019899,2]
[360539400,1746865832208,-368.14380634,0.00019899,2]
[360539401,1746865832219,-368.14380634,0.00019899,2]
[360539402,1746865832229,-368.14380634,0.000199,2]
[360539403,1746865832239,-368.14380634,0.000199,2]
[360539404,1746865832248,-368.14380634,0.000199,2]
[360539405,1746865832258,-368.14380634,0.000199,2]
[360539406,1746865832268,-12500.0,0.000199,2]
[360539407,1746865832279,-368.14380634,0.000199,2]
[360539408,1746865832289,-7923.0732869,0.000199,2]
[360539409,1746865832299,-415.4418759,0.000199,2]
[360539410,1746865832309,-356.26919791,0.000199,2]
[360539411,1746865832319,-500.0,0.00019973,2]
[360539412,1746865832328,-500.0,0.00019973,2]
[360539413,1746865832339,-226.9186598,0.00019973,2]
[360539414,1746865832348,-500.0,0.00019973,2]
[360539415,1746865832358,-500.0,0.00019973,2]
[360539416,1746865832368,-500.0,0.00019973,2]
[360539417,1746865832379,-500.0,0.00019973,2]
[360539418,1746865832390,-151.0,0.00019988,2]
[360539419,1746865832401,-244.37285167,0.00019988,2]
[360539420,1746865832411,-813.41476854,0.00019988,2]
[360539421,1746865832421,-149.45867106,0.00019996,2]
[360539422,1746865832434,-96.21288184,0.00019996,2]
[360539423,1746865832444,-275.8050512,0.00019996,2]
[360539424,1746865832454,-14166.0705667,0.00019996,2]
[360539425,1746865832466,-500.0,0.00019998,2]
[360539426,1746865832476,-500.0,0.00019998,2]
[360539427,1746865832485,-500.0,0.00019998,2]
[360539428,1746865832496,-500.0,0.00019998,2]
[360539429,1746865832505,-500.0,0.00019998,2]
[360539430,1746865832515,-500.0,0.00019998,2]
[360539431,1746865832526,-500.0,0.00019998,2]
[360539432,1746865832535,-171.07742832,0.00019998,2]
[360539433,1746865832545,-500.0,0.00019998,2]
[360539434,1746865832567,-500.0,0.00019998,2]